fUSD/lending_fUSD_20250823
["ID","MTS","AMOUNT","RATE_DAILY","PERIOD"]
[380951267,1755912685004,-933.58,0.00014246,2]
[380951268,1755912685015,-151.0,0.00014246,2]
[380951269,1755912685026,-457.02,0.00014246,2]
[380951270,1755912685037,-400.0,0.00014246,2]
[380951271,1755912685048,-773.99,0.00014246,2]
[380951272,1755912685058,-400.0,0.00014246,2]
[380951273,1755912685068,-1263.394896,0.00014246,2]
[380951274,1755912685078,-400.0,0.00014246,2]
[380951275,1755912685088,-400.0,0.00014246,2]
[380951276,1755912685098,-269.124975,0.00014246,2]
[380951277,1755912685108,-151.0,0.00014246,2]
[380951278,1755912685118,-400.0,0.00014246,2]
[380951279,1755912685128,-400.0,0.00014246,2]
[380951280,1755912685137,-269.124975,0.00014246,2]
[380951281,1755912685148,-610.39,0.00014246,2]
[380951282,1755912685157,-303.152926,0.00014246,2]
[380951283,1755912685167,-400.0,0.00014246,2]
[380951284,1755912685179,-400.0,0.00014246,2]
[380951285,1755912685188,-269.124975,0.00014246,2]
[380951286,1755912685199,-303.152926,0.00014246,2]
[380951287,1755912685209,-407.11,0.00014246,2]
[380951288,1755912685219,-605.05,0.00014246,2]
[380951289,1755912685229,-400.0,0.00014246,2]
[380951290,1755912685239,-453.525844,0.00014246,2]
[380951291,1755912685249,-303.152926,0.00014246,2]
[380951292,1755912685259,-646.19,0.00014246,2]
[380951293,1755912685270,-269.124975,0.00014246,2]
[380951294,1755912685279,-400.0,0.00014246,2]
[380951295,1755912685292,-400.0,0.00014246,2]
[380951296,1755912685302,-303.152926,0.00014246,2]
[380951297,1755912685313,-431.04,0.00014246,2]
[380951298,1755912685323,-453.525844,0.00014246,2]
[380951299,1755912685333,-400.0,0.00014246,2]
[380951300,1755912685344,-938.83,0.00014246,2]
[380951301,1755912685354,-400.0,0.00014246,2]
[380951302,1755912685365,-490.42,0.00014246,2]
[380951303,1755912685376,-580.088906,0.00014246,2]
[380951304,1755912685386,-400.0,0.00014246,2]
[380951305,1755912685396,-453.525844,0.00014246,2]
[380951306,1755912685406,-151.0,0.00014246,2]
[380951307,1755912685416,-664.71,0.00014246,2]
[380951308,1755912685428,-580.088906,0.00014246,2]
[380951309,1755912685438,-453.525844,0.00014246,2]
[380951310,1755912685447,-546.05,0.00014246,2]
[380951311,1755912685458,-1070.54,0.00014246,2]
[380951312,1755912685468,-151.0,0.00014246,2]
[380951313,1755912685478,-410.97,0.00014246,2]
[380951314,1755912685489,-665.32,0.00014246,2]
[380951315,1755912685499,-570.73,0.00014246,2]
[380951316,1755912685510,-580.088906,0.00014246,2]
[380951317,1755912685520,-196.827048,0.00014246,2]
[380951318,1755912685535,-151.0,0.00014246,2]
[380951319,1755912685545,-580.088906,0.00014246,2]
[380951320,1755912685555,-196.827048,0.00014246,2]
[380951321,1755912685565,-716.24,0.00014246,2]
[380951322,1755912685575,-151.0,0.00014246,2]
[380951323,1755912685585,-400.0,0.00014246,2]
[380951324,1755912685595,-196.827048,0.00014246,2]
[380951325,1755912685605,-697.95,0.00014246,2]
[380951326,1755912685615,-400.0,0.00014246,2]
[380951327,1755912685625,-400.0,0.00014246,2]
[380951328,1755912685636,-731.6,0.00014246,2]
[380951329,1755912685646,-196.827048,0.00014246,2]
[380951330,1755912685655,-509.97,0.00014246,2]
[380951331,1755912685665,-1401.51,0.00014246,2]
[380951332,1755912685675,-400.0,0.00014246,2]
[380951333,1755912685686,-474.27,0.00014246,2]
[380951334,1755912685696,-1143.48,0.00014246,2]
[380951335,1755912685706,-151.0,0.00014246,2]
[380951336,1755912685716,-400.0,0.00014246,2]
[380951337,1755912685726,-633.21,0.00014246,2]
[380951338,1755912685736,-151.0,0.00014246,2]
[380951339,1755912685746,-551.73,0.00014246,2]
[380951340,1755912685756,-1150.35,0.00014246,2]
[380951341,1755912685766,-400.0,0.00014246,2]
[380951342,1755912685776,-803.81,0.00014246,2]
[380951343,1755912685786,-151.0,0.00014246,2]
[380951344,1755912685796,-709.31,0.00014246,2]
[380951345,1755912685806,-449.26,0.00014246,2]
[380951346,1755912685816,-400.0,0.00014246,2]
[380951347,1755912685826,-518.56,0.00014246,2]
[380951348,1755912685836,-743.59,0.00014246,2]
[380951349,1755912685847,-178.82233692,0.00014246,2]
[380951350,1755912685857,-507.56,0.00014246,2]
[380951351,1755912685867,-599.05,0.00014246,2]
[380951352,1755912685877,-1049.21,0.00014246,2]
[380951353,1755912685888,-400.0,0.00014246,2]
[380951354,1755912685898,-870.96,0.00014246,2]
[380951355,1755912685908,-400.0,0.00014246,2]
[380951356,1755912685919,-878.26,0.00014246,2]
[380951357,1755912685929,-400.0,0.00014246,2]
[380951358,1755912685940,-640.94,0.00014246,2]
[380951359,1755912685950,-671.68,0.00014246,2]
[380951360,1755912685960,-1743.04,0.00014246,2]
[380951361,1755912685970,-939.87,0.00014246,2]
[380951362,1755912685981,-784.45,0.00014246,2]
[380951363,1755912685991,-400.0,0.00014246,2]
[380951364,1755912686001,-151.0,0.00014246,2]
[380951365,1755912686011,-983.76,0.00014246,2]
[380951366,1755912686021,-400.0,0.00014246,2]
[380951367,1755912686031,-538.86,0.00014246,2]
[380951368,1755912686041,-400.0,0.00014246,2]
[380951369,1755912686050,-400.0,0.00014246,2]
[380951370,1755912686060,-365.494742,0.00014246,2]
[380951371,1755912686071,-151.0,0.00014246,2]
[380951372,1755912686081,-515.45843152,0.00014246,2]
[380951373,1755912686090,-400.0,0.00014246,2]
[380951374,1755912686101,-582.18,0.00014246,2]
[380951375,1755912686111,-365.494742,0.00014246,2]
[380951376,1755912686121,-1021.93,0.00014246,2]
[380951377,1755912686132,-400.0,0.00014246,2]
[380951378,1755912686142,-365.494742,0.00014246,2]
[380951379,1755912686152,-400.0,0.00014246,2]
[380951380,1755912686163,-839.71,0.00014246,2]
[380951381,1755912686172,-365.494742,0.00014246,2]
[380951382,1755912686183,-400.0,0.00014246,2]
[380951383,1755912686194,-706.05,0.00014246,2]
[380951384,1755912686204,-527.2,0.00014246,2]
[380951385,1755912686213,-1278.62,0.00014246,2]
[380951386,1755912686223,-890.17,0.00014246,2]
[380951387,1755912686234,-161.044393,0.00014246,2]
[380951388,1755912686244,-151.0,0.00014246,2]
[380951389,1755912686254,-151.0,0.00014246,2]
[380951390,1755912686264,-649.66,0.00014246,2]
[380951391,1755912686274,-634.12,0.00014246,2]
[380951392,1755912686284,-161.044393,0.00014246,2]
[380951393,1755912686294,-305.05181913,0.00014246,2]
[380951394,1755912686305,-400.0,0.00014246,2]
[380951395,1755912686315,-1099.97,0.00014246,2]
[380951396,1755912686324,-754.33,0.00014246,2]
[380951397,1755912686334,-726.51,0.00014246,2]
[380951398,1755912686344,-161.044393,0.00014246,2]
[380951399,1755912686354,-985.25,0.00014246,2]
[380951400,1755912686367,-784.4,0.00014246,2]
[380951401,1755912686378,-161.044393,0.00014246,2]
[380951402,1755912686388,-971.12,0.00014246,2]
[380951403,1755912686398,-691.37,0.00014246,2]
[380951404,1755912686408,-1154.79,0.00014246,2]
[380951405,1755912686418,-1203.18,0.00014246,2]
[380951406,1755912686428,-1157.08,0.00014246,2]
[380951407,1755912686438,-535.95,0.00014246,2]
[380951408,1755912686450,-331.807127,0.00014246,2]
[380951409,1755912686460,-400.0,0.00014246,2]
[380951410,1755912686470,-151.0,0.00014246,2]
[380951411,1755912686479,-888.95,0.00014246,2]
[380951412,1755912686489,-331.807127,0.00014246,2]
[380951413,1755912686499,-151.0,0.00014246,2]
[380951414,1755912686509,-656.19,0.00014246,2]
[380951415,1755912686519,-400.0,0.00014246,2]
[380951416,1755912686529,-807.2,0.00014246,2]
[380951417,1755912686540,-331.807127,0.00014246,2]
[380951418,1755912686550,-264.72709488,0.00014246,2]
[380951419,1755912686560,-151.0,0.00014246,2]
[380951420,1755912686570,-1439.09,0.00014246,2]
[380951421,1755912686580,-151.0,0.00014246,2]
[380951422,1755912686590,-331.807127,0.00014246,2]
[380951423,1755912686600,-890.52,0.00014246,2]
[380951424,1755912686610,-659.77,0.00014246,2]
[380951425,1755912686620,-400.0,0.00014246,2]
[380951426,1755912686630,-583.57,0.00014246,2]
[380951427,1755912686640,-151.0,0.00014246,2]
[380951428,1755912686650,-151.0,0.00014246,2]
[380951429,1755912686660,-731.16,0.00014246,2]
[380951430,1755912686670,-635.62,0.00014246,2]
[380951431,1755912686681,-400.0,0.00014246,2]
[380951432,1755912686691,-400.0,0.00014246,2]
[380951433,1755912686701,-151.0,0.00014246,2]
[380951434,1755912686712,-400.0,0.00014246,2]
[380951435,1755912686722,-986.02,0.00014246,2]
[380951436,1755912686732,-400.0,0.00014246,2]
[380951437,1755912686742,-766.72,0.00014246,2]
[380951438,1755912686754,-855.77,0.00014246,2]
[380951439,1755912686764,-963.55,0.00014246,2]
[380951440,1755912686775,-967.68,0.00014246,2]
[380951441,1755912686785,-400.0,0.00014246,2]
[380951442,1755912686795,-482.07,0.00014246,2]
[380951443,1755912686805,-735.365588,0.00014246,2]
[380951444,1755912686815,-400.0,0.00014246,2]
[380951445,1755912686825,-400.0,0.00014246,2]
[380951446,1755912686835,-400.0,0.00014246,2]
[380951447,1755912686845,-735.365588,0.00014246,2]
[380951448,1755912686855,-859.0,0.00014246,2]
[380951449,1755912687073,-466.03,0.00014246,2]
[380951450,1755912687083,-151.0,0.00014246,2]
[380951451,1755912687092,-828.37,0.00014246,2]
[380951452,1755912687101,-507.72,0.00014246,2]
[380951453,1755912687111,-506.23,0.00014246,2]
[380951454,1755912687120,-735.365588,0.00014246,2]
[380951455,1755912687129,-1494.7,0.00014246,2]
[380951456,1755912687139,-735.365588,0.00014246,2]
[380951457,1755912687150,-777.58,0.00014246,2]
[380951458,1755912687160,-400.0,0.00014246,2]
[380951459,1755912687171,-400.0,0.00014246,2]
[380951460,1755912687184,-400.0,0.00014246,2]
[380951461,1755912687194,-781.12,0.00014246,2]
[380951462,1755912687204,-479.67,0.00014246,2]
[380951463,1755912687214,-585.32,0.00014246,2]
[380951464,1755912687224,-937.77,0.00014246,2]
[380951465,1755912687234,-755.98,0.00014246,2]
[380951466,1755912687244,-400.0,0.00014246,2]
[380951467,1755912687254,-400.0,0.00014246,2]
[380951468,1755912687264,-1039.23,0.00014246,2]
[380951469,1755912687273,-941.46,0.00014246,2]
[380951470,1755912687284,-650.0,0.00014246,2]
[380951471,1755912687294,-498.14,0.00014246,2]
[380951472,1755912687303,-400.0,0.00014246,2]
[380951473,1755912687313,-979.86,0.00014246,2]
[380951474,1755912687323,-400.0,0.00014246,2]
[380951475,1755912687333,-958.27,0.00014246,2]
[380951476,1755912687342,-792.76,0.00014246,2]
[380951477,1755912687351,-545.13,0.00014246,2]
[380951478,1755912687360,-873.74,0.00014246,2]
[380951479,1755912687373,-903.77,0.00014246,2]
[380951480,1755912687382,-400.0,0.00014246,2]
[380951481,1755912687392,-295.61868246,0.00014246,2]
[380951482,1755912687401,-400.0,0.00014246,2]
[380951483,1755912687411,-505.4,0.00014246,2]
[380951484,1755912687420,-400.0,0.00014246,2]
[380951485,1755912687430,-764.74,0.00014246,2]
[380951486,1755912687440,-822.02,0.00014246,2]
[380951487,1755912687449,-2144.012255,0.00014246,2]
[380951488,1755912687459,-400.0,0.00014246,2]
[380951489,1755912687469,-400.0,0.00014246,2]
[380951490,1755912687479,-2144.012255,0.00014246,2]
[380951491,1755912687489,-400.0,0.00014246,2]
[380951492,1755912687499,-400.0,0.00014246,2]
[380951493,1755912687508,-2144.012255,0.00014246,2]
[380951494,1755912687518,-400.0,0.00014246,2]
[380951495,1755912687527,-400.0,0.00014246,2]
[380951496,1755912687537,-400.0,0.00014246,2]
[380951497,1755912687547,-493.69,0.00014246,2]
[380951498,1755912687557,-2144.012255,0.00014246,2]
[380951499,1755912687568,-400.0,0.00014246,2]
[380951500,1755912687577,-550.01,0.00014246,2]
[380951501,1755912687587,-400.0,0.00014246,2]
[380951502,1755912687597,-532.46,0.00014246,2]
[380951503,1755912687607,-400.0,0.00014246,2]
[380951504,1755912687617,-400.0,0.00014246,2]
[380951505,1755912687627,-957.7,0.00014246,2]
[380951506,1755912687636,-724.98,0.00014246,2]
[380951507,1755912687645,-712.18,0.00014246,2]
[380951508,1755912687655,-3061.19,0.00014246,2]
[380951509,1755912687664,-402.87,0.00014246,2]
[380951510,1755912687675,-484.95,0.00014246,2]
[380951511,1755912687684,-1167.85,0.00014246,2]
[380951512,1755912687694,-839.82,0.00014246,2]
[380951513,1755912687703,-400.0,0.00014246,2]
[380951514,1755912687714,-151.0,0.00014246,2]
[380951515,1755912687724,-151.0,0.00014246,2]
[380951516,1755912687734,-911.43,0.00014246,2]
[380951517,1755912687743,-243.169796,0.00014246,2]
[380951518,1755912687753,-151.0,0.00014246,2]
[380951519,1755912687763,-400.0,0.00014246,2]
[380951520,1755912687772,-400.0,0.00014246,2]
[380951521,1755912687782,-668.01,0.00014246,2]
[380951522,1755912687792,-401.1120209,0.00014246,2]
[380951523,1755912687802,-243.169796,0.00014246,2]
[380951524,1755912687812,-631.42,0.00014246,2]
[380951525,1755912687822,-440.73,0.00014246,2]
[380951526,1755912687832,-613.21,0.00014246,2]
[380951527,1755912687842,-400.0,0.00014246,2]
[380951528,1755912687851,-243.169796,0.00014246,2]
[380951529,1755912687861,-151.0,0.00014246,2]
[380951530,1755912687871,-400.0,0.00014246,2]
[380951531,1755912687880,-931.59,0.00014246,2]
[380951532,1755912687890,-243.169796,0.00014246,2]
[380951533,1755912687899,-151.0,0.00014246,2]
[380951534,1755912687909,-400.0,0.00014246,2]
[380951535,1755912687918,-151.0,0.00014246,2]
[380951536,1755912687928,-151.67318,0.00014246,2]
[380951537,1755912687938,-400.0,0.00014246,2]
[380951538,1755912687948,-298.500409,0.00014246,2]
[380951539,1755912687958,-821.68,0.00014246,2]
[380951540,1755912687967,-585.39,0.00014246,2]
[380951541,1755912687977,-278.001969,0.00014246,2]
[380951542,1755912687987,-980.7,0.00014246,2]
[380951543,1755912687996,-151.0,0.00014246,2]
[380951544,1755912688005,-298.500409,0.00014246,2]
[380951545,1755912688015,-464.46,0.00014246,2]
[380951546,1755912688026,-400.0,0.00014246,2]
[380951547,1755912688036,-408.02,0.00014246,2]
[380951548,1755912688047,-840.52,0.00014246,2]
[380951549,1755912688057,-400.0,0.00014246,2]
[380951550,1755912688068,-627.98,0.00014246,2]
[380951551,1755912688078,-468.81,0.00014246,2]
[380951552,1755912688087,-151.0,0.00014246,2]
[380951553,1755912688097,-298.500409,0.00014246,2]
[380951554,1755912688107,-400.0,0.00014246,2]
[380951555,1755912688116,-151.0,0.00014246,2]
[380951556,1755912688126,-400.0,0.00014246,2]
[380951557,1755912688135,-151.0,0.00014246,2]
[380951558,1755912688145,-298.500409,0.00014246,2]
[380951559,1755912688154,-151.0,0.00014246,2]
[380951560,1755912688164,-416.99,0.00014246,2]
[380951561,1755912688174,-304.36,0.00014246,2]
[380951562,1755912688185,-431.31,0.00014246,2]
[380951563,1755912688195,-424.63,0.00014246,2]
[380951564,1755912688204,-166.66,0.00014252,2]
[380951565,1755912688215,-869.26,0.00014255,2]
[380951566,1755912688225,-500.0,0.00014273,2]
[380951567,1755912688234,-170.72002078,0.00014273,2]
[380951568,1755912688244,-500.0,0.00014273,2]
[380951569,1755912688254,-500.0,0.00014273,2]
[380951570,1755912688264,-500.0,0.00014273,2]
[380951571,1755912688273,-500.0,0.00014273,2]
[380951572,1755912688283,-500.0,0.00014273,2]
[380951573,1755912688292,-508.9055997,0.00014273,2]
[380951574,1755912688302,-500.0,0.00014273,2]
[380951575,1755912688311,-500.0,0.00014273,2]
[380951576,1755912688321,-500.0,0.00014273,2]
[380951577,1755912688330,-500.0,0.00014273,2]
[380951578,1755912688340,-501.73664956,0.00014273,2]
[380951579,1755912688350,-168.0,0.00014305,2]
[380951580,1755912688360,-168.0,0.00014318,2]
[380951581,1755912688374,-200.0,0.00014321,2]
[380951582,1755912688384,-1292.0498613,0.00014329,2]
[380951583,1755912688394,-159.25993501,0.00014343,2]
[380951584,1755912688403,-2276.09335768,0.0001435,2]
[380951585,1755912688414,-168.0,0.00014366,2]
[380951586,1755912688423,-2579.5806119,0.00014383,2]
[380951587,1755912688433,-2118.87,0.00014384,2]
[380951588,1755912688443,-150.0,0.000144,3]
[380951589,1755912688453,-1944.44444,0.0001441,2]
[380951590,1755912688463,-454.78454612,0.0001444,2]
[380951591,1755912688473,-736.0,0.00014441,2]
[380951592,1755912688482,-151.0,0.00014455,2]
[380951593,1755912688492,-151.0,0.00014455,2]
[380951594,1755912688502,-151.0,0.00014455,2]
[380951595,1755912688511,-151.0,0.00014455,2]
[380951596,1755912688521,-151.0,0.00014455,2]
[380951597,1755912688530,-294.804585,0.00014455,2]
[380951598,1755912688540,-151.0,0.00014455,2]
[380951599,1755912688550,-192.358073,0.00014455,2]
[380951600,1755912688560,-151.0,0.00014455,2]
[380951601,1755912688570,-192.358073,0.00014455,2]
[380951602,1755912688580,-204.878944,0.00014455,2]
[380951603,1755912688590,-192.358073,0.00014455,2]
[380951604,1755912688601,-192.358073,0.00014455,2]
[380951605,1755912688610,-151.0,0.00014455,2]
[380951606,1755912688619,-178.034059,0.00014455,2]
[380951607,1755912688629,-151.0,0.00014455,2]
[380951608,1755912688638,-178.034059,0.00014455,2]
[380951609,1755912688648,-178.034059,0.00014455,2]
[380951610,1755912688658,-178.034059,0.00014455,2]
[380951611,1755912688667,-151.0,0.00014455,2]
[380951612,1755912688677,-151.0,0.00014455,2]
[380951613,1755912688686,-151.0,0.00014455,2]
[380951614,1755912688696,-200.0,0.00014464,2]
[380951615,1755912688705,-168.0,0.00014465,2]
[380951616,1755912688715,-1000.0,0.00014466,2]
[380951617,1755912688725,-168.0,0.00014484,2]
[380951618,1755912688734,-188.0,0.00014494,2]
[380951619,1755912688744,-5100.0,0.000145,3]
[380951620,1755912688754,-1782.0,0.00014509,2]
[380951621,1755912688763,-432.72,0.0001452,2]
[380951622,1755912688774,-303.3,0.0001452,2]
[380951623,1755912688783,-404.24,0.0001452,2]
[380951624,1755912688792,-402.10011829,0.0001452,2]
[380951625,1755912688803,-400.0,0.0001452,2]
[380951626,1755912688812,-400.0,0.0001452,2]
[380951627,1755912688822,-957.1,0.0001452,2]
[380951628,1755912688831,-400.0,0.0001452,2]
[380951629,1755912688841,-400.0,0.0001452,2]
[380951630,1755912688850,-500.5,0.0001452,2]
[380951631,1755912688860,-400.0,0.0001452,2]
[380951632,1755912688870,-630.13,0.0001452,2]
[380951633,1755912688879,-484.29,0.0001452,2]
[380951634,1755912688890,-691.2,0.0001452,2]
[380951635,1755912688899,-400.0,0.0001452,2]
[380951636,1755912688909,-564.0,0.0001452,2]
[380951637,1755912688919,-922.66,0.0001452,2]
[380951638,1755912688929,-1309.75,0.0001452,2]
[380951639,1755912688939,-400.0,0.0001452,2]
[380951640,1755912688949,-400.0,0.0001452,2]
[380951641,1755912688959,-400.0,0.0001452,2]
[380951642,1755912688968,-410.64,0.0001452,2]
[380951643,1755912688978,-400.0,0.0001452,2]
[380951644,1755912688987,-400.0,0.0001452,2]
[380951645,1755912688997,-400.0,0.0001452,2]
[380951646,1755912689006,-400.0,0.0001452,2]
[380951647,1755912689016,-400.0,0.0001452,2]
[380951648,1755912689025,-400.0,0.0001452,2]
[380951649,1755912689035,-400.0,0.0001452,2]
[380951650,1755912689045,-400.0,0.0001452,2]
[380951651,1755912689054,-400.0,0.0001452,2]
[380951652,1755912689064,-400.0,0.0001452,2]
[380951653,1755912689074,-400.0,0.0001452,2]
[380951654,1755912689084,-400.0,0.0001452,2]
[380951655,1755912689094,-814.35,0.0001452,2]
[380951656,1755912689104,-703.72,0.0001452,2]
[380951657,1755912689113,-400.0,0.0001452,2]
[380951658,1755912689123,-400.0,0.0001452,2]
[380951659,1755912689133,-400.0,0.0001452,2]
[380951660,1755912689143,-400.0,0.0001452,2]
[380951661,1755912689153,-400.0,0.0001452,2]
[380951662,1755912689162,-416.84,0.0001452,2]
[380951663,1755912689172,-552.81,0.0001452,2]
[380951664,1755912689182,-565.22,0.0001452,2]
[380951665,1755912689191,-400.0,0.0001452,2]
[380951666,1755912689201,-400.0,0.0001452,2]
[380951667,1755912689210,-457.37,0.0001452,2]
[380951668,1755912689220,-400.0,0.0001452,2]
[380951669,1755912689229,-400.0,0.0001452,2]
[380951670,1755912689239,-400.0,0.0001452,2]
[380951671,1755912689248,-400.0,0.0001452,2]
[380951672,1755912689259,-398.4882457,0.0001452,2]
[380951673,1755912689268,-400.0,0.0001452,2]
[380951674,1755912689278,-454.18,0.0001452,2]
[380951675,1755912689643,-400.0,0.0001452,2]
[380951676,1755912689658,-151.0,0.0001452,2]
[380951677,1755912689667,-408.41,0.0001452,2]
[380951678,1755912689679,-411.77,0.0001452,2]
[380951679,1755912689688,-400.0,0.0001452,2]
[380951680,1755912689698,-458.22458004,0.0001452,2]
[380951681,1755912689707,-429.23,0.0001452,2]
[380951682,1755912689717,-400.0,0.0001452,2]
[380951683,1755912689727,-400.0,0.0001452,2]
[380951684,1755912689737,-400.0,0.0001452,2]
[380951685,1755912689746,-400.0,0.0001452,2]
[380951686,1755912689755,-400.0,0.0001452,2]
[380951687,1755912689765,-582.37,0.0001452,2]
[380951688,1755912689774,-400.0,0.0001452,2]
[380951689,1755912689784,-400.0,0.0001452,2]
[380951690,1755912689793,-400.0,0.0001452,2]
[380951691,1755912689802,-400.0,0.0001452,2]
[380951692,1755912689812,-400.0,0.0001452,2]
[380951693,1755912689821,-759.88,0.0001452,2]
[380951694,1755912689830,-591.39,0.0001452,2]
[380951695,1755912689841,-413.97,0.0001452,2]
[380951696,1755912689850,-649.74,0.0001452,2]
[380951697,1755912689860,-446.38,0.0001452,2]
[380951698,1755912689870,-506.47,0.0001452,2]
[380951699,1755912689879,-715.02,0.0001452,2]
[380951700,1755912689889,-400.0,0.0001452,2]
[380951701,1755912689899,-537.25,0.0001452,2]
[380951702,1755912689909,-400.0,0.0001452,2]
[380951703,1755912689919,-400.0,0.0001452,2]
[380951704,1755912689929,-168.966498,0.0001452,2]
[380951705,1755912689940,-512.45,0.0001452,2]
[380951706,1755912689949,-400.0,0.0001452,2]
[380951707,1755912689959,-527.41,0.0001452,2]
[380951708,1755912689968,-168.966498,0.0001452,2]
[380951709,1755912689977,-168.966498,0.0001452,2]
[380951710,1755912689986,-521.1,0.0001452,2]
[380951711,1755912689996,-168.966498,0.0001452,2]
[380951712,1755912690005,-400.0,0.0001452,2]
[380951713,1755912690015,-446.92,0.0001452,2]
[380951714,1755912690025,-449.44,0.0001452,2]
[380951715,1755912690034,-675.1,0.0001452,2]
[380951716,1755912690044,-400.0,0.0001452,2]
[380951717,1755912690053,-151.0,0.0001452,2]
[380951718,1755912690063,-400.0,0.0001452,2]
[380951719,1755912690072,-400.0,0.0001452,2]
[380951720,1755912690081,-151.0,0.0001452,2]
[380951721,1755912690091,-400.0,0.0001452,2]
[380951722,1755912690100,-400.0,0.0001452,2]
[380951723,1755912690110,-609.3,0.0001452,2]
[380951724,1755912690119,-654.03,0.0001452,2]
[380951725,1755912690128,-400.0,0.0001452,2]
[380951726,1755912690138,-400.0,0.0001452,2]
[380951727,1755912690147,-400.0,0.0001452,2]
[380951728,1755912690157,-400.0,0.0001452,2]
[380951729,1755912690166,-467.39,0.0001452,2]
[380951730,1755912690177,-661.96,0.0001452,2]
[380951731,1755912690187,-400.0,0.0001452,2]
[380951732,1755912690197,-568.98,0.0001452,2]
[380951733,1755912690207,-400.0,0.0001452,2]
[380951734,1755912690216,-400.0,0.0001452,2]
[380951735,1755912690226,-506.38,0.0001452,2]
[380951736,1755912690236,-400.0,0.0001452,2]
[380951737,1755912690246,-400.0,0.0001452,2]
[380951738,1755912690255,-400.0,0.0001452,2]
[380951739,1755912690265,-400.0,0.0001452,2]
[380951740,1755912690274,-709.86,0.0001452,2]
[380951741,1755912690284,-400.0,0.0001452,2]
[380951742,1755912690294,-812.84,0.0001452,2]
[380951743,1755912690304,-437.4,0.0001452,2]
[380951744,1755912690314,-151.0,0.0001452,2]
[380951745,1755912690324,-586.38,0.0001452,2]
[380951746,1755912690333,-442.27,0.0001452,2]
[380951747,1755912690343,-400.0,0.0001452,2]
[380951748,1755912690352,-562.61,0.0001452,2]
[380951749,1755912690364,-400.0,0.0001452,2]
[380951750,1755912690384,-400.0,0.0001452,2]
[380951751,1755912690393,-400.0,0.0001452,2]
[380951752,1755912690404,-400.0,0.0001452,2]
[380951753,1755912690414,-845.65,0.0001452,2]
[380951754,1755912690423,-441.24,0.0001452,2]
[380951755,1755912690435,-529.98,0.0001452,2]
[380951756,1755912690445,-400.0,0.0001452,2]
[380951757,1755912690454,-400.0,0.0001452,2]
[380951758,1755912690464,-400.0,0.0001452,2]
[380951759,1755912690473,-570.39,0.0001452,2]
[380951760,1755912690484,-400.0,0.0001452,2]
[380951761,1755912690493,-421.77,0.0001452,2]
[380951762,1755912690502,-400.0,0.0001452,2]
[380951763,1755912690511,-400.0,0.0001452,2]
[380951764,1755912690521,-400.0,0.0001452,2]
[380951765,1755912690530,-400.0,0.0001452,2]
[380951766,1755912690539,-400.0,0.0001452,2]